bitfinex/quotes_BTCUSD_20251209
["timestamp","ask_amount","ask_price","bid_price","bid_amount"]
[1765300250933,0.001,94401.0,94400.0,0.00051849]
[1765300251878,0.01059243,94407.0,94400.0,0.00051849]
[1765300251879,0.01059288,94403.0,94400.0,0.21238219]
[1765300252128,0.2118559,94404.0,94401.0,0.22245481]
[1765300252368,0.22245133,94403.0,94400.0,0.00051849]
[1765300252613,0.22244664,94405.0,94402.0,0.21185942]
[1765300252852,0.01059265,94405.0,94400.0,0.01111171]
[1765300253076,0.01059288,94403.0,94400.0,0.00051849]
[1765300253536,0.01059243,94407.0,94401.0,0.0105931]
[1765300253763,0.21186216,94401.0,94400.0,0.00051849]
[1765300255383,0.001,94401.0,94400.0,0.00051849]
[1765300255583,0.001,94401.0,94400.0,0.17496849]
[1765300255785,1.05870353,94456.0,94417.0,0.01059131]
[1765300255786,0.21181308,94423.0,94417.0,0.01059131]
[1765300256033,0.01059041,94425.0,94420.0,0.22240844]
[1765300256231,0.00217033,94436.0,94412.0,0.01688]
[1765300256232,0.01159086,94421.0,94415.0,0.01059153]
[1765300256518,0.001,94421.0,94417.0,0.21182489]
[1765300256671,0.001,94421.0,94411.0,0.21183848]
[1765300256672,0.01059063,94423.0,94418.0,0.0105912]
[1765300256872,0.21182323,94419.0,94411.0,0.01059198]
[1765300257077,0.01059142,94416.0,94412.0,0.01059187]
[1765300257251,0.01059097,94420.0,94411.0,0.22243053]
[1765300257252,0.21182751,94417.0,94411.0,0.01059198]
[1765300257428,0.01059108,94419.0,94415.0,0.01059153]
[1765300257639,0.0105912,94418.0,94414.0,0.01059164]
[1765300257934,0.01059075,94422.0,94418.0,0.21182401]
[1765300258174,0.01059063,94423.0,94419.0,0.01059108]
[1765300258381,0.01059007,94428.0,94424.0,0.01059052]
[1765300258586,0.21180767,94426.0,94423.0,0.01059063]
[1765300258891,0.01059019,94427.0,94422.0,0.22240527]
[1765300259254,0.0105903,94426.0,94423.0,0.01059063]
[1765300259604,0.01059007,94428.0,94424.0,0.22240011]
[1765300259803,0.01058985,94430.0,94427.0,0.01059019]
[1765300259967,0.21180343,94428.0,94425.0,0.01059041]
[1765300260161,0.2223935,94428.0,94423.0,0.22240332]
[1765300260386,0.22239585,94427.0,94424.0,0.01059052]
[1765300260563,0.01058873,94440.0,94435.0,0.21178588]
[1765300260767,0.01058929,94435.0,94428.0,0.01059007]
[1765300260989,0.0105894,94434.0,94431.0,0.01058974]
[1765300261191,0.2223769,94435.0,94431.0,0.22238358]
[1765300261395,0.0105894,94434.0,94431.0,0.01058974]
[1765300261603,0.01058985,94430.0,94425.0,0.01059041]
[1765300261923,0.00117033,94436.0,94413.0,0.04987]
[1765300261924,0.01059052,94424.0,94419.0,0.01059108]
[1765300262130,0.21180607,94426.0,94422.0,0.01059075]
[1765300262131,0.0105903,94426.0,94422.0,0.01059075]
[1765300262311,0.2118047,94427.0,94423.0,0.21181087]
[1765300262511,0.01059063,94423.0,94415.0,0.01059153]
[1765300262755,0.01059086,94421.0,94417.0,0.01059131]
[1765300262922,0.01059063,94423.0,94419.0,0.01059108]
[1765300263271,0.21177007,94443.0,94424.0,0.0211]
[1765300263428,0.2492,94448.0,94424.0,0.0211]
[1765300263429,0.01058906,94437.0,94433.0,0.21178974]
[1765300263744,0.02208799,94451.0,94433.0,0.21178974]
[1765300263745,0.2117496,94452.0,94435.0,0.08247]
[1765300263949,0.01058772,94449.0,94435.0,0.08247]
[1765300264189,0.21175107,94451.0,94435.0,0.17445]
[1765300264387,0.01058862,94441.0,94434.0,0.21178699]
[1765300264578,0.01058828,94444.0,94434.0,0.21178699]
[1765300264912,0.00217033,94436.0,94434.0,0.21178699]
[1765300265269,0.00117033,94436.0,94435.0,0.178]
[1765300266208,0.00117033,94436.0,94435.0,0.4687]
[1765300267162,0.00117033,94436.0,94435.0,0.5245785]
[1765300267603,0.00217033,94436.0,94435.0,0.4687]
[1765300267824,0.00117033,94436.0,94435.0,0.4687]
[1765300268110,0.00117033,94436.0,94435.0,0.4727]
[1765300268317,0.00117033,94436.0,94435.0,0.56746256]
[1765300268492,0.00117033,94436.0,94435.0,0.4747]
[1765300268660,0.00117033,94436.0,94435.0,0.56746256]
[1765300269089,0.00117033,94436.0,94435.0,0.4747]
[1765300269889,0.00117033,94436.0,94435.0,0.006]
[1765300270094,0.21295397,94436.0,94435.0,0.08046142]
[1765300270290,0.21295397,94436.0,94435.0,0.006]
[1765300270535,0.00117033,94436.0,94435.0,0.006]
[1765300270731,0.00117033,94436.0,94435.0,0.004]
[1765300270946,0.00117033,94436.0,94435.0,0.18775917]
[1765300271119,0.00117033,94436.0,94435.0,0.19933375]
[1765300271322,0.00117033,94436.0,94435.0,0.21299447]
[1765300271751,0.00117033,94436.0,94435.0,0.50875858]
[1765300271949,0.00117033,94436.0,94435.0,0.48958]
[1765300272315,0.00117033,94436.0,94435.0,0.48758]
[1765300272519,0.00117033,94436.0,94435.0,0.47048]
[1765300272673,0.00117033,94436.0,94435.0,0.49158]
[1765300273135,0.00117033,94436.0,94435.0,0.48958]
[1765300273351,0.00217033,94436.0,94435.0,0.004]
[1765300273559,0.0047832,94436.0,94435.0,0.003]
[1765300273760,0.0037832,94436.0,94435.0,0.05878872]
[1765300273956,0.0047832,94436.0,94435.0,0.06078872]
[1765300274231,0.21178588,94435.0,94434.0,0.05578872]
[1765300274598,0.21278588,94435.0,94433.0,0.05578872]
[1765300274982,0.21180683,94426.0,94424.0,0.07435826]
[1765300275183,0.01059019,94427.0,94423.0,0.29676058]
[1765300275399,0.01058996,94429.0,94426.0,0.0105903]
[1765300275612,0.21179884,94430.0,94426.0,0.0105903]
[1765300275864,0.01058996,94429.0,94426.0,0.22239501]
[1765300276287,0.01058996,94429.0,94424.0,0.08494878]
[1765300276592,0.01059007,94428.0,94424.0,0.08494878]
[1765300276795,0.22239806,94426.0,94423.0,0.07435826]
[1765300276996,0.21281055,94424.0,94423.0,0.07435826]
[1765300277202,0.001,94424.0,94421.0,0.32807317]
[1765300277353,0.22340212,94424.0,94423.0,0.07445252]
[1765300277518,0.22340212,94424.0,94422.0,0.07445252]
[1765300277962,0.001,94423.0,94422.0,0.07445252]
[1765300278163,0.21181504,94422.0,94421.0,0.10566692]
[1765300278359,0.21281504,94422.0,94421.0,0.10566692]
[1765300278774,0.21181432,94423.0,94421.0,0.10566692]
[1765300278945,0.001,94422.0,94421.0,0.10566692]
[1765300279756,0.21182177,94419.0,94418.0,0.07445252]
[1765300280134,0.01059142,94416.0,94411.0,0.22243049]
[1765300280310,0.01059142,94416.0,94412.0,0.2118359]
[1765300280514,0.01059097,94420.0,94413.0,0.01059176]
[1765300280731,0.01058873,94440.0,94429.0,0.01058996]
[1765300280860,0.21176601,94444.0,94433.0,0.01058951]
[1765300281062,0.01058839,94443.0,94435.0,0.21178588]
[1765300281260,0.22236274,94441.0,94434.0,0.21178719]
[1765300281469,0.01058862,94441.0,94434.0,0.21178719]
[1765300281731,0.01058794,94447.0,94434.0,0.28628611]
[1765300281945,0.22235501,94444.0,94434.0,0.21178719]
[1765300282150,0.001,94435.0,94434.0,0.0744922]
[1765300282349,0.00117033,94436.0,94433.0,0.22237858]
[1765300282565,0.00117033,94436.0,94435.0,0.07449263]
[1765300282970,0.00117033,94436.0,94433.0,0.11625643]
[1765300283127,0.00117033,94436.0,94435.0,0.21178588]
[1765300283330,0.00217033,94436.0,94434.0,0.21178655]
[1765300283524,0.21178706,94435.0,94433.0,0.10566692]
[1765300284104,0.21178706,94435.0,94425.0,0.07449263]
[1765300284105,0.02058463,94428.0,94425.0,0.07449263]
[1765300284234,0.02058463,94428.0,94404.0,0.13016829]
[1765300284235,0.2118285,94416.0,94414.0,0.07449263]
[1765300284429,0.21283074,94415.0,94413.0,0.07449263]
[1765300284658,0.21183523,94413.0,94411.0,0.07449263]
[1765300284859,0.22243405,94410.0,94408.0,0.07449263]
[1765300285059,0.22243405,94410.0,94409.0,0.07449263]
[1765300285391,0.22243405,94410.0,94402.0,0.00022326]
[1765300285392,0.21185767,94403.0,94402.0,0.00022326]
[1765300285544,0.21185559,94404.0,94402.0,0.00022326]
[1765300285748,0.01059153,94415.0,94408.0,0.01059232]
[1765300285946,0.01059142,94416.0,94410.0,0.0211]
[1765300286276,0.22242277,94415.0,94411.0,0.2224317]
[1765300286437,0.22242277,94415.0,94413.0,0.001]
[1765300286667,0.21183747,94412.0,94411.0,0.001]
[1765300287053,0.21185094,94406.0,94405.0,0.2907]
[1765300287410,0.21185094,94406.0,94400.0,0.0004]
[1765300287411,0.06252299,94403.0,94400.0,0.0004]
[1765300287540,0.06352299,94403.0,94401.0,0.07463694]
[1765300287741,0.06352299,94403.0,94400.0,0.0004]
[1765300287742,0.06452299,94403.0,94400.0,0.0004]
[1765300287997,0.08661098,94403.0,94400.0,0.0004]
[1765300288201,0.06452299,94403.0,94400.0,0.0004]
[1765300288466,0.08661098,94403.0,94400.0,0.0004]
[1765300289094,0.37731098,94403.0,94400.0,0.0004]
[1765300289300,0.37731098,94403.0,94400.0,0.05636833]
[1765300289555,0.21185542,94404.0,94400.0,0.0004]
[1765300289778,0.21183396,94414.0,94404.0,0.21185439]
[1765300289990,0.21184033,94411.0,94405.0,0.08515857]
[1765300290225,0.01059108,94419.0,94413.0,0.01059176]
[1765300290409,0.22241403,94419.0,94418.0,0.05591426]
[1765300290667,0.01058963,94432.0,94418.0,0.06037]
[1765300290840,0.01058963,94432.0,94428.0,0.01059007]
[1765300290980,0.21178904,94434.0,94430.0,0.01058985]
[1765300291179,0.01058929,94435.0,94432.0,0.06648796]
[1765300291463,0.01058929,94435.0,94432.0,0.05589833]
[1765300291637,0.22237902,94434.0,94431.0,0.05589833]
[1765300291864,0.01058996,94429.0,94426.0,0.0105903]
[1765300292061,0.01058996,94429.0,94424.0,0.05741052]
[1765300292062,0.01059019,94427.0,94424.0,0.04682]
[1765300292265,0.01058996,94429.0,94425.0,0.22239872]
[1765300292473,0.01058996,94429.0,94425.0,0.01059041]
[1765300292673,0.01058974,94431.0,94427.0,0.01059019]
[1765300292835,0.22238348,94432.0,94428.0,0.21180158]
[1765300293178,0.01058963,94432.0,94428.0,0.22239165]
[1765300293371,0.22238336,94432.0,94428.0,0.22239165]
[1765300293552,0.01058963,94432.0,94429.0,0.01058996]
[1765300293968,0.00117033,94436.0,94430.0,0.01058985]
[1765300294373,0.01058963,94432.0,94428.0,0.01259007]
[1765300294584,0.01058951,94433.0,94429.0,0.22238765]
[1765300294865,0.22237626,94435.0,94431.0,0.01058974]
[1765300295194,0.22354427,94436.0,94434.0,0.05589996]
[1765300295349,0.00117033,94436.0,94434.0,0.05589996]
[1765300295716,0.21295516,94436.0,94434.0,0.05589996]
[1765300296265,0.21295516,94436.0,94425.0,0.01059041]
[1765300296266,0.21178812,94434.0,94433.0,0.05589996]
[1765300296601,0.00117033,94436.0,94434.0,0.21178605]
[1765300296904,0.00117033,94436.0,94435.0,0.05589428]
[1765300296905,0.00217033,94436.0,94435.0,0.05589428]
[1765300297103,0.00117033,94436.0,94434.0,0.05589428]
[1765300297248,0.21295517,94436.0,94434.0,0.05589428]
[1765300297613,0.21178685,94435.0,94433.0,0.05589428]
[1765300298181,0.21178685,94435.0,94434.0,0.05589428]
[1765300299206,0.27792271,94435.0,94434.0,0.05589428]
[1765300299555,0.21181874,94421.0,94417.0,0.07456592]
[1765300299892,0.21183299,94414.0,94413.0,0.07456592]
[1765300300077,0.27436944,94408.0,94407.0,0.07456592]
[1765300300292,0.21185767,94403.0,94401.0,0.07456592]
[1765300300450,0.21185767,94403.0,94401.0,0.07459498]
[1765300300451,0.27538066,94403.0,94401.0,0.07459498]
[1765300300658,0.21185767,94403.0,94401.0,0.07459498]
[1765300302530,0.21185767,94403.0,94400.0,0.07500788]
[1765300302968,0.22244212,94407.0,94403.0,0.01059288]
[1765300303190,0.42358557,94432.0,94403.0,0.01059288]
[1765300303191,0.22242075,94416.0,94413.0,0.01059176]
[1765300303412,0.01059131,94417.0,94413.0,0.2118346]
[1765300303413,0.22241817,94417.0,94413.0,0.2118346]
[1765300303621,0.01059097,94420.0,94416.0,0.21182773]
[1765300303793,0.01059097,94420.0,94416.0,0.22241915]
[1765300303794,0.22241308,94419.0,94416.0,0.22241915]
[1765300303962,0.22240246,94424.0,94417.0,0.01059131]
[1765300304168,0.01059063,94423.0,94419.0,0.01059108]
[1765300304432,0.21181305,94423.0,94420.0,0.22241017]
[1765300304635,0.01688,94426.0,94421.0,0.01059086]
[1765300304834,0.06252299,94427.0,94425.0,0.0559318]
[1765300305052,0.27432744,94427.0,94426.0,0.0559318]
[1765300305461,0.06252299,94427.0,94426.0,0.0559318]
[1765300305619,0.06352299,94427.0,94426.0,0.0559318]
[1765300305819,0.06352299,94427.0,94424.0,0.01059052]
[1765300306024,0.06352299,94427.0,94424.0,0.22239951]
[1765300306227,0.27632747,94427.0,94424.0,0.22240056]
[1765300306436,0.003,94427.0,94424.0,0.22240056]
[1765300306659,0.21180664,94426.0,94423.0,0.2224029]
[1765300306885,0.21182401,94418.0,94416.0,0.0745936]
[1765300307229,0.01059131,94417.0,94414.0,0.29701736]
[1765300307368,0.01059075,94422.0,94418.0,0.0105912]
[1765300307555,0.01059097,94420.0,94417.0,0.22241689]
[1765300307754,0.01059108,94419.0,94416.0,0.01059142]
[1765300307999,0.22240605,94422.0,94416.0,0.01059142]
[1765300308000,0.22240605,94422.0,94418.0,0.21182294]
[1765300308569,0.22240858,94421.0,94417.0,0.01059131]
[1765300308770,0.22240858,94421.0,94420.0,0.05594632]
[1765300309193,0.01059086,94421.0,94420.0,0.05594632]
[1765300309804,0.21181952,94420.0,94419.0,0.05594632]
[1765300310010,0.21181952,94420.0,94408.0,0.0745936]
[1765300310011,0.2118285,94416.0,94415.0,0.05594632]
[1765300310210,0.21183972,94411.0,94409.0,0.05594632]
[1765300310407,0.06252299,94408.0,94406.0,0.05594632]
[1765300310685,0.29645967,94407.0,94406.0,0.05594632]
[1765300310928,0.29646416,94405.0,94404.0,0.05594632]
[1765300311102,0.31334416,94405.0,94404.0,0.05594632]
[1765300311319,0.31534416,94405.0,94403.0,0.05594632]
[1765300311488,0.29125617,94405.0,94403.0,0.05594632]
[1765300311688,0.21185767,94403.0,94395.0,0.0745936]
[1765300311905,0.21185767,94403.0,94398.0,0.21186807]
[1765300312101,0.22873767,94403.0,94398.0,0.01059344]
[1765300312307,0.22873767,94403.0,94399.0,0.01059333]
[1765300312546,0.01688,94403.0,94400.0,0.01099322]
[1765300312868,0.21185648,94404.0,94400.0,0.0004]
[1765300313106,0.001,94403.0,94400.0,0.0004]
[1765300313249,0.001,94403.0,94402.0,0.05620602]
[1765300313250,0.35522299,94403.0,94402.0,0.05620602]
[1765300313467,0.37731098,94403.0,94402.0,0.05620602]
[1765300313708,0.37531098,94401.0,94400.0,0.0004]
[1765300313877,0.37631098,94401.0,94400.0,0.00051849]
[1765300314070,0.37731098,94401.0,94400.0,0.00051849]
[1765300315355,0.37731098,94401.0,94400.0,0.00651849]
[1765300316492,0.39419098,94401.0,94400.0,0.00651849]
[1765300319216,0.01059467,94387.0,94384.0,0.05598276]
[1765300319365,0.06252299,94381.0,94380.0,0.05598276]
[1765300319569,0.06252299,94381.0,94376.0,0.05598276]
[1765300319570,0.08461098,94377.0,94376.0,0.05598276]
[1765300319765,0.29652701,94377.0,94376.0,0.05670854]
[1765300320013,0.57713358,94377.0,94376.0,0.00072578]
[1765300320185,0.57713358,94377.0,94353.0,0.09276256]
[1765300320186,0.36321755,94361.0,94344.0,0.0745936]
[1765300320383,0.63029755,94361.0,94360.0,0.00031822]
[1765300320619,0.61441755,94361.0,94360.0,0.00031822]
[1765300320840,0.63129755,94361.0,94360.0,0.00076499]
[1765300321048,0.61441755,94361.0,94360.0,0.00076499]
[1765300321212,0.63291042,94361.0,94360.0,0.00176499]
[1765300321822,0.34221042,94361.0,94360.0,0.00076499]
[1765300322157,0.35021042,94361.0,94360.0,0.00176499]
[1765300323311,0.34921042,94361.0,94360.0,0.00176499]
[1765300323742,0.35021042,94361.0,94360.0,0.00176499]
[1765300324392,0.33333042,94361.0,94360.0,0.00176499]
[1765300324591,0.35021042,94361.0,94360.0,0.00176499]
[1765300325004,0.33333042,94361.0,94360.0,0.00176499]
[1765300325200,0.35021042,94361.0,94360.0,0.00176499]
[1765300326291,0.39171042,94361.0,94360.0,0.00176499]
[1765300326416,0.39171042,94361.0,94335.0,0.0745936]
[1765300326417,0.58728541,94351.0,94335.0,0.0745936]
[1765300326615,0.2226227,94330.0,94327.0,0.0745936]
[1765300326822,0.2226227,94330.0,94323.0,0.0745936]
[1765300326823,0.21203511,94324.0,94323.0,0.0745936]
[1765300327020,0.21203511,94324.0,94293.0,0.01060524]
[1765300327021,0.21205084,94317.0,94316.0,0.0745936]
[1765300327300,0.21205084,94317.0,94300.0,0.04766]
[1765300327301,0.21205984,94313.0,94312.0,0.0745936]
[1765300327511,0.01060276,94315.0,94309.0,0.01060344]
[1765300327726,0.01060287,94314.0,94310.0,0.01060332]
[1765300327925,0.22263319,94326.0,94318.0,0.01060243]
[1765300328139,0.50509183,94350.0,94320.0,0.08507875]
[1765300328140,0.23951456,94325.0,94320.0,0.08507875]
[1765300328340,0.01060096,94331.0,94323.0,0.01060186]
[1765300328608,0.01060119,94329.0,94326.0,0.07449181]
[1765300328811,0.22262597,94329.0,94326.0,0.07449181]
[1765300329011,0.01060108,94330.0,94326.0,0.08509334]
[1765300329221,0.01060108,94330.0,94327.0,0.07449181]
[1765300329222,0.22262445,94330.0,94327.0,0.07449181]
[1765300329362,0.01060085,94332.0,94327.0,0.07449181]
[1765300329363,0.01060085,94332.0,94328.0,0.07449181]
[1765300329557,0.23950135,94331.0,94329.0,0.07449181]
[1765300329795,0.23950135,94331.0,94326.0,0.01060153]
[1765300329796,0.21202251,94330.0,94328.0,0.07449181]
[1765300330157,0.21202836,94327.0,94325.0,0.07449181]
[1765300330357,0.21203286,94325.0,94323.0,0.07449181]
[1765300330579,0.01060175,94324.0,94323.0,0.07449181]
[1765300330777,0.23951686,94324.0,94323.0,0.07449181]
[1765300330995,0.23951686,94324.0,94322.0,0.07449181]
[1765300331242,0.23951686,94324.0,94309.0,0.01060344]
[1765300331243,0.2120396,94322.0,94321.0,0.07449181]
[1765300331371,0.21204635,94319.0,94311.0,0.09276256]
[1765300331577,0.21304635,94319.0,94310.0,0.09276256]
[1765300332566,0.21465922,94319.0,94314.0,0.07451123]
[1765300332729,0.21465922,94319.0,94313.0,0.07451123]
[1765300332927,0.21565922,94319.0,94318.0,0.00156753]
[1765300333134,0.21465922,94319.0,94318.0,0.00156753]
[1765300333714,0.21565922,94319.0,94318.0,0.00156753]
[1765300333969,0.23674721,94319.0,94318.0,0.00256753]
[1765300334204,0.23774721,94319.0,94318.0,0.00456753]
[1765300334525,0.23674721,94319.0,94318.0,0.00156753]
[1765300334724,0.23874721,94319.0,94318.0,0.00256753]
[1765300335543,0.00361287,94319.0,94318.0,0.00256753]
[1765300335749,0.01888,94319.0,94318.0,0.00256753]
[1765300335998,0.002,94319.0,94318.0,0.06310753]
[1765300336180,0.002,94319.0,94318.0,0.00256753]
[1765300336181,0.21665922,94319.0,94318.0,0.00256753]
[1765300336430,0.21765922,94319.0,94318.0,0.00256753]
[1765300337170,0.21665922,94319.0,94318.0,0.00256753]
[1765300339100,0.23353922,94319.0,94318.0,0.00256753]
[1765300339335,0.21404635,94319.0,94318.0,0.00256753]
[1765300339562,0.01888,94319.0,94318.0,0.00256753]
[1765300341173,0.002,94319.0,94318.0,0.00256753]
[1765300341750,0.00461287,94319.0,94318.0,0.00256753]
[1765300342826,0.02770086,94319.0,94318.0,0.00038513]
[1765300343061,0.00461287,94319.0,94318.0,0.00038513]
[1765300343232,0.22269304,94301.0,94300.0,0.015393]
[1765300343409,0.01060434,94301.0,94300.0,0.00011823]
[1765300343662,0.22268881,94303.0,94300.0,0.06192823]
[1765300343833,0.01060411,94303.0,94302.0,0.06181]
[1765300344027,0.21208682,94301.0,94300.0,0.00011823]
[1765300344287,0.01060389,94305.0,94301.0,0.01060434]
[1765300344490,0.22268743,94303.0,94300.0,0.28962136]
[1765300344656,0.21208682,94301.0,94300.0,0.06192823]
[1765300344834,0.01688,94313.0,94307.0,0.01060366]
[1765300345037,0.21205234,94317.0,94312.0,0.0106031]
[1765300345038,0.22265743,94316.0,94312.0,0.0106031]
[1765300345263,0.22265743,94316.0,94311.0,0.06181]
[1765300345264,0.21206089,94313.0,94311.0,0.06181]
[1765300345436,0.21206089,94313.0,94309.0,0.04866]
[1765300345437,0.21206521,94311.0,94309.0,0.04866]
[1765300345638,0.22266731,94312.0,94309.0,0.04866]
[1765300345842,0.01060276,94315.0,94313.0,0.0211]
[1765300346193,0.01060254,94317.0,94315.0,0.02118]
[1765300346339,0.21204922,94318.0,94316.0,0.06181]
[1765300346678,0.22265165,94318.0,94317.0,0.06181]
[1765300346833,0.21205652,94315.0,94308.0,0.01060355]
[1765300347047,0.01060265,94316.0,94309.0,0.1401]
[1765300347048,0.2226661,94312.0,94309.0,0.1401]
[1765300347450,0.21206511,94311.0,94310.0,0.09144]
[1765300347668,0.21205759,94314.0,94307.0,0.212072]
[1765300347844,0.21205088,94317.0,94305.0,0.21207683]
[1765300347845,0.01060254,94317.0,94314.0,0.06181]
[1765300348058,0.23953574,94316.0,94314.0,0.06181]
[1765300348267,0.01060265,94316.0,94314.0,0.15325]
[1765300348475,0.01060265,94316.0,94315.0,0.06181]
[1765300348971,0.01060265,94316.0,94315.0,0.15325]
[1765300349172,0.01060231,94319.0,94315.0,0.15325]
[1765300349355,0.0106031,94312.0,94308.0,0.32833999]
[1765300349487,0.01060299,94313.0,94309.0,0.03170344]
[1765300349702,0.22266354,94313.0,94312.0,0.06181]
[1765300350119,0.22266354,94313.0,94312.0,0.15325]
[1765300350320,0.01060299,94313.0,94312.0,0.15325]
[1765300350532,0.21204764,94319.0,94314.0,0.01060287]
[1765300350782,0.01060254,94317.0,94314.0,0.01060287]
[1765300350947,0.01060254,94317.0,94314.0,0.22265931]
[1765300351194,0.01060198,94322.0,94316.0,0.06181]
[1765300351396,0.01060018,94338.0,94330.0,0.01060108]
[1765300351594,0.21200877,94336.0,94333.0,0.22261511]
[1765300351983,0.01060018,94338.0,94334.0,0.01060063]
[1765300352191,0.21200013,94340.0,94338.0,0.04866]
[1765300352402,0.01177133,94344.0,94338.0,0.04866]
[1765300352403,0.21316199,94344.0,94342.0,0.06181]
[1765300352607,0.01059984,94341.0,94338.0,0.04866]
[1765300352832,0.21200001,94340.0,94339.0,0.09144]
[1765300353015,0.21200589,94337.0,94335.0,0.04866]
[1765300353551,0.00156798,94344.0,94337.0,0.01060029]
[1765300353822,0.01059962,94343.0,94339.0,0.01060006]
[1765300353970,0.00156798,94344.0,94343.0,0.21199241]
[1765300354331,0.00156798,94344.0,94342.0,0.21199465]
[1765300354546,0.00256798,94344.0,94341.0,0.22259613]
[1765300354693,0.00256798,94344.0,94342.0,0.21199372]
[1765300355057,0.00256798,94344.0,94343.0,0.08291]
[1765300355058,0.00156798,94344.0,94343.0,0.08291]
[1765300355202,0.00356798,94344.0,94343.0,0.17435]
[1765300355616,0.00156798,94344.0,94343.0,0.17435]
[1765300355817,0.00156798,94344.0,94343.0,0.46505]
[1765300356069,0.00256798,94344.0,94343.0,0.46505]
[1765300356494,0.00756798,94344.0,94343.0,0.46505]
[1765300356710,0.00756798,94344.0,94341.0,0.01059984]
[1765300356711,0.00256798,94344.0,94341.0,0.01059984]
[1765300356917,0.21200211,94339.0,94337.0,0.1401]
[1765300357119,0.21200308,94339.0,94337.0,0.1401]
[1765300357328,0.22260141,94340.0,94338.0,0.16747692]
[1765300357541,0.21200364,94338.0,94337.0,0.04866]
[1765300358396,0.21200364,94338.0,94337.0,0.04966]
[1765300358862,0.21200364,94338.0,94337.0,0.04866]
[1765300359087,0.21200364,94338.0,94337.0,0.04966]
[1765300359310,0.21200235,94339.0,94337.0,0.04966]
[1765300359540,0.02852508,94404.0,94337.0,0.04966]
[1765300359541,0.00156798,94344.0,94339.0,0.01060006]
[1765300359767,0.00156798,94344.0,94343.0,0.08291]
[1765300360215,0.00156798,94344.0,94343.0,0.17435]
[1765300360440,0.00156798,94344.0,94343.0,0.06181]
[1765300361109,0.00356798,94344.0,94343.0,0.06281]
[1765300361335,0.00356798,94344.0,94343.0,0.15425]
[1765300361763,0.00356798,94344.0,94343.0,0.15525]
[1765300362007,0.00356798,94344.0,94343.0,0.17635]
[1765300362257,0.00356798,94344.0,94343.0,0.46705]
[1765300363114,0.00356798,94344.0,94343.0,0.48293]
[1765300363586,0.00156798,94344.0,94343.0,0.48393]
[1765300363793,0.00256798,94344.0,94343.0,0.48593]
[1765300363985,0.00256798,94344.0,94343.0,0.48393]
[1765300364183,0.00156798,94344.0,94343.0,0.48393]
[1765300364386,0.00256798,94344.0,94343.0,0.48593]
[1765300366388,0.00256798,94344.0,94343.0,0.46593]
[1765300368072,5.00256798,94344.0,94343.0,0.46593]
[1765300368270,5.00256798,94344.0,94343.0,0.54068799]
[1765300368494,5.00256798,94344.0,94343.0,0.54069307]
[1765300369957,5.00256798,94344.0,94343.0,0.46593]
[1765300375147,5.00256798,94344.0,94337.0,0.01060029]
[1765300375353,5.00256798,94344.0,91059.0,0.002]
[1765300375354,5.00256798,94344.0,94269.0,0.0211]
[1765300375355,0.03789376,94270.0,94269.0,0.0211]
[1765300375588,0.06252299,94342.0,94341.0,0.0211]
[1765300375765,0.20101586,94342.0,94341.0,0.0211]
[1765300376580,0.20141201,94342.0,94341.0,0.04229969]
[1765300376783,0.20141201,94342.0,94341.0,0.03119969]
[1765300377025,0.20241201,94342.0,94341.0,0.03319969]
[1765300377151,0.20241201,94342.0,94341.0,0.015]
[1765300378230,0.20241201,94342.0,94341.0,0.02103995]
[1765300381239,0.18553201,94342.0,94341.0,0.02103995]
[1765300381462,0.20241201,94342.0,94341.0,0.02103995]
[1765300381666,0.18553201,94342.0,94341.0,0.02103995]
[1765300382034,0.18553201,94342.0,94314.0,0.2907]
[1765300382035,0.01688,94342.0,94332.0,0.9306218]
[1765300382239,0.39475218,94341.0,94340.0,0.0211]
[1765300382707,0.39475218,94341.0,94332.0,0.00161287]
[1765300382708,0.41163218,94341.0,94332.0,0.00161287]
[1765300382851,0.39475218,94341.0,94340.0,0.0211]
[1765300383055,0.41163218,94341.0,94340.0,0.0211]
[1765300383856,0.41263218,94341.0,94340.0,0.0211]
[1765300384178,0.41263218,94341.0,94340.0,0.02217485]
[1765300384736,0.41263218,94341.0,94340.0,0.02717485]
[1765300384952,0.41163218,94341.0,94340.0,0.02717485]
[1765300385158,0.41163218,94341.0,94340.0,0.02217485]
[1765300385353,0.41163218,94341.0,94340.0,0.0321]
[1765300385354,0.41263218,94341.0,94340.0,0.0321]
[1765300385580,0.41163218,94341.0,94340.0,0.0261]
[1765300385982,0.47515517,94341.0,94340.0,0.0251]
[1765300386382,0.47515517,94341.0,94340.0,0.0291]
[1765300386562,0.47415517,94341.0,94340.0,0.0251]
[1765300387003,0.47615517,94341.0,94340.0,0.0261]
[1765300387176,0.47615517,94341.0,94340.0,0.015]
[1765300387382,0.47615517,94341.0,94302.0,0.00022361]
[1765300387383,0.06252299,94338.0,94314.0,4.2683]
[1765300387601,0.9306218,94324.0,94323.0,0.0211]
[1765300387797,0.01688,94324.0,94323.0,0.0211]
[1765300389033,0.01688,94324.0,94323.0,0.0251]
[1765300389209,0.01788,94324.0,94323.0,0.0291]
[1765300389673,0.01688,94324.0,94323.0,0.0251]
[1765300389875,0.01788,94324.0,94323.0,0.0271]
[1765300390541,0.01788,94324.0,94323.0,0.0231]
[1765300390759,0.01788,94324.0,94323.0,0.0251]
[1765300390760,0.08040299,94324.0,94323.0,0.0251]
[1765300395517,0.08040299,94324.0,94323.0,0.002]
[1765300395744,0.06252299,94323.0,94322.0,0.0211]
[1765300396154,0.01788,94324.0,94323.0,0.0211]
[1765300396364,0.2924381,94324.0,94323.0,0.0211]
[1765300396526,0.08040299,94324.0,94323.0,0.0211]
[1765300397712,0.07940299,94324.0,94323.0,0.0231]
[1765300398675,0.08040299,94324.0,94323.0,0.0251]
[1765300399063,0.06352299,94324.0,94323.0,0.0251]
[1765300399494,0.08040299,94324.0,94323.0,0.0211]
[1765300399784,0.06352299,94324.0,94323.0,5.0211]
[1765300399981,0.08040299,94324.0,94323.0,5.0211]
[1765300400577,0.001,94324.0,94323.0,5.02271287]
[1765300400817,0.01788,94324.0,94323.0,5.02271287]
[1765300401374,0.01788,94324.0,94323.0,4.87441287]
[1765300401375,0.001,94324.0,94323.0,4.87441287]
[1765300401547,0.01788,94324.0,94323.0,5.286213]
[1765300403939,0.01788,94324.0,94323.0,2.8692]
[1765300404143,0.01788,94324.0,94323.0,0.3118]
[1765300404358,0.01788,94324.0,94323.0,0.0211]
[1765300404744,0.08040299,94324.0,94323.0,0.0211]
[1765300404949,0.08201586,94324.0,94323.0,0.0211]
[1765300405148,0.06252299,94323.0,94322.0,0.0211]
[1765300405479,0.06252299,94323.0,94269.0,0.10566692]
[1765300405480,0.06252299,94311.0,94286.0,0.13104214]
[1765300405679,0.06252299,94311.0,94283.0,0.03183579]
[1765300405680,0.06252299,94309.0,94283.0,0.03183579]
[1765300405893,0.06413586,94309.0,94294.0,0.0211]